[Event "29th CRO-chT Junior 2020"]
[Site "Cakovec"]
[Date "2020.07.15"]
[Round "3.7"]
[White "Borzan, Matej"]
[Black "Colev, Ivor"]
[Result "1-0"]
[ECO "A88"]
[WhiteElo "1746"]
[BlackElo "1893"]
[Annotator "NA RC"]
[PlyCount "95"]
[EventDate "2020.07.14"]
[EventType "team-tourn"]
[EventCountry "CRO"]
[SourceTitle "playchess.com"]
[Source "ChessBase"]
[SourceQuality "1"]
[TimeControl "5400+30"]

{[%evp 18,95,11,14,19,21,19,13,38,11,179,158,184,156,214,30,262,34,262,302,285,282,280,227,237,245,232,154,167,145,147,146,889,227,491,335,32767,32767,32767,32767,237,232,244,252,358,406,357,402,532,471,481,504,473,620,507,743,502,655,652,634,727,726,764,777,631,978,983,713,712,866,755,1010,1064,1000,1364,1064,904,2283,1127,1416]} 1. d4 {[%emt 0:00:30]} f5 {[%emt 0:00:30]} 2. c4 {[%emt 0:00:00]} Nf6 {[%emt 0:00:00]} 3. Nc3 {[%emt 0:00:00]} g6 {[%emt 0:00:00]} 4. Nf3 {[%emt 0:00:00]} Bg7 {[%emt 0:00:00]} 5. g3 {[%emt 0:00:00]} O-O {[%emt 0:00:00]} 6. Bg2 {[%emt 0:00:30]} d6 {[%emt 0:00:30]} 7. O-O {[%emt 0:00:30]} c6 {[%emt 0:00:00] is recently more successful than 7...Qe8. Played by Hikaru Nakamura in June 2020.} 8. Bf4 {[%emt 0:00:30]} Qe8 {[%emt 0:01:00] A88: Dutch Defence: Leningrad System: 5 Nf3 0-0 6 0-0 d6 7 Nc3 c6.} 9. Qd2 {[%emt 0:01:30]} Nbd7 $1 {[%emt 0:07:30]} 10. Bh6 {[%emt 0:03:30]} e5 {[%emt 0:00:30]} 11. Bxg7 {[%emt 0:01:30]} Kxg7 {[%emt 0:00:30]} 12. dxe5 {[%emt 0:02:30]} dxe5 {[%emt 0:00:00]} 13. e4 {[%emt 0:00:30] [#]} Nh5 $2 $146 {[%emt 0:23:00]} (13... Nc5 $11 {and Black is okay.}) ({Predecessor:} 13... Nxe4 14. Nxe4 fxe4 15. Ng5 Nf6 16. Nxe4 Nxe4 17. Bxe4 Bg4 18. Rae1 Qd8 19. Qb4 Rf7 {½-½ (42) Raps,J (2148)-Wehner,R (2266) Germany 2011}) 14. exf5 {[%emt 0:06:30]} gxf5 {[%emt 0:00:30]} 15. Rfe1 {[%emt 0:00:30]} e4 {[%emt 0:00:30]} 16. Nd4 $2 {[%emt 0:00:30]} (16. g4 $1 $18) 16... Ne5 $2 {[%emt 0:08:30] [#]} ({Black should play} 16... Qg6 $14) 17. f3 $2 {[%emt 0:04:30]} ({Only move:} 17. Nxe4 $1 $18 {[%mdl 512]} fxe4 18. Qg5+ Ng6 19. Qxh5 (19. Rxe4 Qf7 $16)) 17... exf3 $2 {[%emt 0:01:30]} (17... Qg6 $14) 18. Nxf3 {[%emt 0:01:30]} Nxf3+ {[%emt 0:00:30]} 19. Bxf3 {[%emt 0:00:00]} Qg6 {[%emt 0:00:30]} 20. Re7+ {[%emt 0:01:00]} Kg8 {[%emt 0:02:30] [#]} 21. Bxh5 $1 {[%emt 0:08:30]} Qxh5 {[%emt 0:00:30]} 22. Qd4 {[%emt 0:00:30]} Qg6 {[%emt 0:01:30]} 23. Ne2 {[%emt 0:04:30]} Qg5 {[%emt 0:08:30]} 24. Qe5 {[%emt 0:02:30]} h5 $2 {[%emt 0:04:30]} (24... Qf6 $16 25. Qxf6 Rxf6) 25. Kf2 $2 {[%emt 0:03:30]} (25. Nf4 Qf6 26. Qe2 Qd4+ 27. Kg2) 25... b6 $2 {[%emt 0:10:30]} (25... Qf6 26. Qxf6 Rxf6) 26. Rd1 {[%emt 0:01:30]} Qf6 {[%emt 0:09:30]} 27. Qxf6 {[%emt 0:00:30]} Rxf6 {[%emt 0:00:00]} 28. Re8+ {[%emt 0:00:00]} Rf8 {[%emt 0:00:00]} 29. Rxf8+ {[%emt 0:02:00]} Kxf8 {[%emt 0:01:30]} 30. Rd8+ {[%emt 0:00:30]} Kg7 {[%emt 0:01:47]} (30... Ke7 $142 31. Rh8 Kd6) 31. Nd4 {[%emt 0:00:30]} Kf6 {[%emt 0:03:34]} 32. Nxc6 {[%emt 0:00:30]} Bb7 {[%emt 0:00:27]} 33. Rxa8 {[%emt 0:00:30]} Bxa8 {[%emt 0:00:06]} 34. Nxa7 {[%emt 0:00:30]} Bb7 {[%emt 0:01:03]} 35. Nb5 {[%emt 0:00:30]} Ke5 {[%emt 0:00:39]} 36. Ke3 {[%emt 0:00:00]} Bc6 {[%emt 0:02:01]} 37. Nc3 {[%emt 0:00:00]} Bg2 {[%emt 0:01:45]} 38. Ne2 {[%emt 0:00:30]} Bf1 {[%emt 0:01:00]} 39. Kf2 {[%emt 0:00:30]} Bh3 {[%emt 0:00:16]} 40. Nf4 {[%emt 0:00:30]} Bg4 {[%emt 0:00:26]} 41. Ke3 {[%emt 0:00:30]} Bd1 {[%emt 0:00:36]} 42. Nd3+ {[%emt 0:00:30]} Ke6 {[%emt 0:00:53]} 43. Kd4 {[%emt 0:00:00]} Kd6 {[%emt 0:00:35]} 44. b4 {[%emt 0:00:00]} Ba4 {[%emt 0:00:24]} 45. Nf4 {[%emt 0:00:30]} Be8 {[%emt 0:00:18]} 46. c5+ {[%emt 0:00:30]} bxc5+ {[%emt 0:00:30]} 47. bxc5+ {[%emt 0:00:30]} Kc6 {[%emt 0:00:02]} 48. Nd3 $18 {[%emt 0:00:30]} 1-0

[Event "29th CRO-chT Junior 2020"]
[Site "Cakovec"]
[Date "2020.07.15"]
[Round "3.8"]
[White "Poljan, Max"]
[Black "Dankos, Mislav"]
[Result "0-1"]
[ECO "D12"]
[WhiteElo "1618"]
[BlackElo "1274"]
[Annotator "NA RC"]
[PlyCount "159"]
[EventDate "2020.07.14"]
[EventType "team-tourn"]
[EventCountry "CRO"]
[SourceTitle "playchess.com"]
[Source "ChessBase"]
[SourceQuality "1"]
[TimeControl "5400+30"]

1. d4 {[%emt 0:00:30]} d5 {[%emt 0:00:30]} 2. Nf3 {[%emt 0:00:00]} Nf6 {[%emt 0:00:30]} 3. e3 {[%emt 0:00:00]} Bf5 {[%emt 0:01:30]} 4. c4 {[%emt 0:00:00]} c6 {[%emt 0:01:30]} 5. Qb3 {[%emt 0:00:00]} Qc7 {[%emt 0:04:30]} 6. Nc3 {[%emt 0:00:30]} e6 {[%emt 0:01:30]} 7. Be2 {[%emt 0:01:30]} Bd6 {[%emt 0:02:30]} 8. O-O {[%emt 0:01:30]} O-O {[%emt 0:01:30]} 9. h3 {[%emt 0:01:30]} b6 {[%emt 0:02:30]} 10. Bd2 {[%emt 0:01:30]} Nbd7 {[%emt 0:07:30]} 11. Rac1 {[%emt 0:00:00]} Qb7 {[%emt 0:04:30]} 12. Nh4 {[%emt 0:04:00]} Ne4 {[%emt 0:04:30]} 13. Nxe4 {[%emt 0:01:30]} Bxe4 {[%emt 0:00:30]} 14. f3 {[%emt 0:01:30]} dxc4 {[%emt 0:00:00]} 15. Bxc4 {[%emt 0:00:30]} Bd5 {[%emt 0:00:00]} 16. Bxd5 {[%emt 0:00:30]} cxd5 {[%emt 0:00:30]} 17. f4 {[%emt 0:00:30]} Nf6 {[%emt 0:00:30]} 18. Nf3 {[%emt 0:02:30]} Ne4 {[%emt 0:00:30]} 19. Bb4 {[%emt 0:01:30]} Bxb4 {[%emt 0:02:30]} 20. Qxb4 {[%emt 0:00:00]} Qa6 {[%emt 0:01:30]} 21. Qb3 {[%emt 0:01:00]} Ng3 {[%emt 0:00:30]} 22. Rfe1 {[%emt 0:03:30]} Ne2+ {[%emt 0:00:30]} 23. Kf2 {[%emt 0:00:30]} Nxc1 {[%emt 0:00:30]} 24. Rxc1 {[%emt 0:00:00]} Rac8 {[%emt 0:00:30]} 25. Rc3 {[%emt 0:01:00]} Rxc3 {[%emt 0:00:30]} 26. Qxc3 {[%emt 0:00:30]} Qc4 {[%emt 0:00:30]} 27. Qa3 {[%emt 0:00:00]} a5 {[%emt 0:03:30]} 28. Qe7 {[%emt 0:04:00]} Qc2+ {[%emt 0:00:30]} 29. Kg3 {[%emt 0:00:30]} Qg6+ {[%emt 0:00:30]} 30. Kf2 {[%emt 0:00:30]} Qf6 {[%emt 0:00:30]} 31. Qb7 {[%emt 0:00:00]} Qd8 {[%emt 0:01:30]} 32. Ne5 {[%emt 0:03:00]} Qd6 {[%emt 0:02:30]} 33. Nd7 {[%emt 0:03:30]} Rd8 {[%emt 0:01:30]} 34. Ne5 {[%emt 0:00:30]} Rf8 {[%emt 0:04:30]} 35. Nd7 {[%emt 0:00:00]} Qe7 {[%emt 0:00:30]} 36. Qc6 {[%emt 0:00:00]} Rd8 {[%emt 0:00:30]} 37. Ne5 {[%emt 0:00:30]} f6 {[%emt 0:03:30]} 38. Nd3 {[%emt 0:00:30]} Rd6 {[%emt 0:00:30]} 39. Qb5 {[%emt 0:03:30]} Qd7 {[%emt 0:02:30]} 40. Qxd7 {[%emt 0:01:30]} Rxd7 {[%emt 0:00:30]} 41. Ke2 {[%emt 0:00:30]} Rc7 {[%emt 0:00:00]} 42. Kd2 {[%emt 0:00:00]} Kf7 {[%emt 0:00:00]} 43. g3 {[%emt 0:01:00]} g5 {[%emt 0:02:30]} 44. fxg5 {[%emt 0:01:30]} fxg5 {[%emt 0:00:30]} 45. Ne5+ {[%emt 0:00:00]} Kf6 {[%emt 0:00:30]} 46. g4 {[%emt 0:00:00]} b5 {[%emt 0:00:30]} 47. Nd3 {[%emt 0:03:30]} b4 {[%emt 0:01:30]} 48. Kd1 {[%emt 0:00:30]} Ke7 {[%emt 0:00:30]} 49. Kd2 {[%emt 0:01:30]} Kd6 {[%emt 0:00:30]} 50. Kd1 {[%emt 0:01:30]} Kc6 {[%emt 0:00:30]} 51. Nc5 {[%emt 0:01:30]} Kd6 {[%emt 0:02:30]} 52. Nd3 {[%emt 0:00:00]} Rb7 {[%emt 0:00:30]} 53. Kc2 {[%emt 0:06:00]} Rf7 {[%emt 0:01:30]} 54. Ne5 {[%emt 0:00:30]} Rf2+ {[%emt 0:00:30]} 55. Kb3 {[%emt 0:00:30]} Kc7 {[%emt 0:01:30]} 56. Ka4 {[%emt 0:00:30]} Kb6 {[%emt 0:00:30]} 57. Nd7+ {[%emt 0:00:30]} Ka6 {[%emt 0:00:30]} 58. Nc5+ {[%emt 0:00:30]} Kb6 {[%emt 0:00:30]} 59. Nd7+ {[%emt 0:00:00]} Kc7 {[%emt 0:02:30]} 60. Ne5 {[%emt 0:01:00]} Rxb2 {[%emt 0:00:30]} 61. Kxa5 {[%emt 0:00:00]} b3 {[%emt 0:00:30]} 62. axb3 {[%emt 0:01:00]} Rxb3 {[%emt 0:00:00]} 63. Nf7 {[%emt 0:00:30]} h6 {[%emt 0:01:00]} 64. Nxh6 {[%emt 0:01:30]} Rxe3 {[%emt 0:00:30]} 65. Nf7 {[%emt 0:00:00]} Rxh3 {[%emt 0:00:30]} 66. Nxg5 {[%emt 0:00:00]} Rh4 {[%emt 0:00:30]} 67. Nxe6+ {[%emt 0:01:30]} Kd6 {[%emt 0:00:00]} 68. Nf4 {[%emt 0:00:30]} Rxg4 {[%emt 0:00:00]} 69. Ne2 {[%emt 0:00:00]} Re4 {[%emt 0:00:30]} 70. Nc1 {[%emt 0:01:00]} Rxd4 {[%emt 0:00:30]} 71. Nb3 {[%emt 0:00:30]} Rc4 {[%emt 0:00:30]} 72. Kb5 {[%emt 0:00:00]} Ke5 {[%emt 0:00:30]} 73. Nd2 {[%emt 0:01:00]} Rc2 {[%emt 0:00:30]} 74. Nf1 {[%emt 0:00:30]} d4 {[%emt 0:00:30]} 75. Kb4 {[%emt 0:00:30]} d3 {[%emt 0:00:30]} 76. Kb3 {[%emt 0:00:30]} Rc8 {[%emt 0:00:30]} 77. Nd2 {[%emt 0:00:30]} Kd4 {[%emt 0:00:30]} 78. Nf1 {[%emt 0:00:30]} Ke4 {[%emt 0:00:30]} 79. Nd2+ {[%emt 0:00:00]} Ke3 {[%emt 0:00:00]} 80. Nc4+ {[%emt 0:01:00]} 0-1

[Event "29th CRO-chT Junior 2020"]
[Site "Cakovec"]
[Date "2020.07.15"]
[Round "3.11"]
[White "Baric, Marko"]
[Black "Tomljanovic, Ivano"]
[Result "0-1"]
[ECO "C62"]
[WhiteElo "1831"]
[BlackElo "1393"]
[Annotator "NA RC"]
[PlyCount "100"]
[EventDate "2020.07.14"]
[EventType "team-tourn"]
[EventCountry "CRO"]
[SourceTitle "playchess.com"]
[Source "ChessBase"]
[SourceQuality "1"]
[TimeControl "5400+30"]

{[%evp 12,100,44,34,47,61,51,17,19,25,19,16,14,20,27,17,21,0,31,10,21,-11,-12,-15,29,23,39,34,64,0,16,16,5,0,52,35,59,56,47,10,43,4,43,47,67,0,3,0,0,0,0,-111,-86,-48,-253,-240,-270,-267,-220,-377,-477,-29990,-6303,-29992,-343,-960,-1038,-951,-1042,-1236,-1207,-1012,-1411,-1153,-1600,-1662,-4133,-2382,-5310,-29973,-29973,-12841,-29977,-29979,-29980,-6219,-29980,-29980,-29984,-29992,-29993]} 1. e4 {[%emt 0:00:30]} e5 {[%emt 0:00:30]} 2. Nf3 {[%emt 0:00:00]} Nc6 {[%emt 0:00:00]} 3. Bb5 {[%emt 0:00:00]} d6 {[%emt 0:00:00]} 4. d4 {[%emt 0:02:30]} exd4 {[%emt 0:01:30]} 5. Nxd4 {[%emt 0:02:30]} Bd7 {[%emt 0:00:30]} 6. O-O {[%emt 0:01:30]} Nf6 {[%emt 0:01:30]} 7. Bxc6 {[%emt 0:02:30]} Bxc6 {[%emt 0:00:30]} 8. Nxc6 {[%emt 0:01:30]} bxc6 {[%emt 0:00:30]} 9. Bg5 {[%emt 0:04:30]} Be7 {[%emt 0:00:30]} 10. Qd4 {[%emt 0:03:30] C62: Ruy Lopez: Steinitz Defence.} O-O {[%emt 0:01:30]} 11. Nd2 {[%emt 0:01:30] [#]} Re8 $146 {[%emt 0:01:30]} ({Predecessor:} 11... h6 12. Bh4 Re8 13. f4 c5 14. Qd3 Rb8 15. b3 Nd7 16. Bxe7 Rxe7 17. Rae1 Nb6 {½-½ (57) Richter,G (2211)-Li,D (1058) Oberwinden 2007}) 12. Rfe1 {[%emt 0:02:30]} h6 {[%emt 0:00:30]} 13. Bh4 {[%emt 0:02:30]} c5 {[%emt 0:02:30]} 14. Qa4 {[%emt 0:01:30]} Nd7 {[%emt 0:01:30]} (14... Ng4 $5 {[%cal Re7h4]} 15. Bg3 Bh4 $11) 15. Bxe7 {[%emt 0:01:30]} Qxe7 {[%emt 0:00:30]} 16. Nc4 {[%emt 0:13:30]} Nb6 {[%emt 0:01:30]} 17. Nxb6 {[%emt 0:00:30]} cxb6 {[%emt 0:00:30]} 18. Rad1 {[%emt 0:05:30]} Rad8 {[%emt 0:00:30]} 19. Rd5 {[%emt 0:08:30]} Qb7 {[%emt 0:01:30]} 20. Rxd6 {[%emt 0:15:30]} (20. Red1 $14) 20... b5 {[%emt 0:03:30]} 21. Rxd8 {[%emt 0:00:30]} Rxd8 {[%emt 0:00:30]} 22. Qa5 {[%emt 0:01:30]} Rd6 {[%emt 0:03:30]} 23. f3 {[%emt 0:02:30]} Qd7 {[%emt 0:03:30]} 24. Qc3 {[%emt 0:02:30]} c4 {[%emt 0:01:30]} 25. Kf1 {[%emt 0:02:30]} Rd4 {[%emt 0:03:30]} 26. a3 {[%emt 0:02:13]} h5 {[%emt 0:02:30]} 27. Ke2 {[%emt 0:03:38]} Rd6 {[%emt 0:15:30]} 28. b3 {[%emt 0:03:20]} cxb3 {[%emt 0:03:30]} 29. cxb3 {[%emt 0:00:58]} Rc6 {[%emt 0:02:30]} 30. Qd3 {[%emt 0:00:43]} Qc7 {[%emt 0:02:30]} 31. Rd1 {[%emt 0:08:39]} (31. e5 $1 $11) 31... Qxh2 {[%emt 0:01:30]} 32. Qd8+ {[%emt 0:01:22]} ({White has to play} 32. Kf2 $17) 32... Kh7 {[%emt 0:00:30]} 33. Qg5 {[%emt 0:01:48]} Rg6 {[%emt 0:02:30]} 34. Qf5 {[%emt 0:01:07]} Kh6 {[%emt 0:03:30]} ({Less strong is} 34... Qxg2+ 35. Ke3 $17) 35. Qxf7 {[%emt 0:01:01]} Qxg2+ {[%emt 0:00:30]} 36. Ke1 {[%emt 0:00:54]} (36. Ke3 $19 Rf6 {[%mdl 64] Double Attack} 37. Qd5) 36... Qh2 {[%emt 0:02:30]} (36... Qg1+ $142 37. Kd2 Qd4+ 38. Kc1 Rc6+ 39. Qc4 Qe3+ {[%mdl 64] Double Attack} 40. Kc2 bxc4 41. b4 Rg6 42. Kb1 Qb3+ {[%mdl 64] Double Attack} 43. Ka1 c3 44. Rd2 Rg1+ 45. Rd1 Rxd1#) 37. Qxa7 {[%emt 0:00:41]} Rg1+ $2 {[%emt 0:01:30]} (37... Rg2 {mates} 38. Rd6+ Kh7 39. Rh6+ {[%mdl 64] Decoy} Kxh6 40. Qe3+ Kh7 41. Kd1 Ra2 42. f4 Qc2+ 43. Ke1 Qb1+ 44. Qc1 Qxc1#) 38. Qxg1 {[%emt 0:00:11]} Qxg1+ {[%emt 0:00:30]} 39. Ke2 {[%emt 0:00:00]} Qc5 {[%emt 0:01:30]} 40. b4 {[%emt 0:00:58]} Qa7 {[%emt 0:00:30]} 41. Rd6+ {[%emt 0:00:29]} g6 {[%emt 0:01:30]} 42. f4 {[%emt 0:00:45] [#]} Qe7 $1 {[%emt 0:01:30]} 43. Rd4 {[%emt 0:00:07]} h4 {[%emt 0:02:30]} 44. Kf3 {[%emt 0:00:22]} Qe6 {[%emt 0:00:30]} 45. e5 {[%emt 0:01:07]} Qh3+ {[%emt 0:00:30]} 46. Ke4 {[%emt 0:00:21]} Qg2+ {[%emt 0:00:30]} 47. Ke3 {[%emt 0:00:41]} Qg1+ {[%emt 0:01:30]} 48. Ke4 {[%emt 0:00:05]} h3 {[%emt 0:01:30]} 49. Rd3 {[%emt 0:00:16] [#]} Qb1 {[%emt 0:01:30]} 50. e6 {[%emt 0:00:18]} h2 {[%emt 0:00:30]} 0-1

[Event "29th CRO-chT Junior 2020"]
[Site "Cakovec"]
[Date "2020.07.15"]
[Round "3.12"]
[White "Kresic, Vid"]
[Black "Cecic-Sule, Dino"]
[Result "0-1"]
[ECO "D02"]
[WhiteElo "1216"]
[BlackElo "1695"]
[Annotator "NA RC"]
[PlyCount "82"]
[EventDate "2020.07.14"]
[EventType "team-tourn"]
[EventCountry "CRO"]
[SourceTitle "playchess.com"]
[Source "ChessBase"]
[SourceQuality "1"]
[TimeControl "5400+30"]

1. d4 {[%emt 0:00:30]} d5 {[%emt 0:01:30]} 2. Nf3 {[%emt 0:00:30]} Nf6 {[%emt 0:00:30]} 3. Bf4 {[%emt 0:00:30]} c5 {[%emt 0:00:00]} 4. e3 {[%emt 0:00:30]} Nc6 {[%emt 0:00:00]} 5. Nbd2 {[%emt 0:00:30]} Qb6 {[%emt 0:00:30]} 6. Qc1 {[%emt 0:01:30]} cxd4 {[%emt 0:00:30]} 7. exd4 {[%emt 0:00:30]} Nxd4 {[%emt 0:01:30]} 8. Be3 {[%emt 0:04:30]} Nxf3+ {[%emt 0:00:30]} 9. Nxf3 {[%emt 0:00:30]} Qc7 {[%emt 0:00:30]} 10. Bb5+ {[%emt 0:01:30]} Bd7 {[%emt 0:00:00]} 11. Bxd7+ {[%emt 0:00:30]} Nxd7 {[%emt 0:00:00]} 12. O-O {[%emt 0:00:30]} e6 {[%emt 0:00:30]} 13. c3 {[%emt 0:00:30]} Be7 {[%emt 0:00:30]} 14. Qd2 {[%emt 0:01:30]} O-O {[%emt 0:00:00]} 15. Rfe1 {[%emt 0:00:00]} Nf6 {[%emt 0:01:00]} 16. Bd4 {[%emt 0:01:00]} Ne4 {[%emt 0:00:30]} 17. Qc2 {[%emt 0:01:30]} Bc5 {[%emt 0:01:30]} 18. Be3 {[%emt 0:03:30]} Bxe3 {[%emt 0:00:30]} 19. Rxe3 {[%emt 0:00:30]} b5 {[%emt 0:00:30]} 20. Nd2 {[%emt 0:01:30]} f5 {[%emt 0:01:30]} 21. Nxe4 {[%emt 0:01:30]} fxe4 {[%emt 0:00:30]} 22. a4 {[%emt 0:00:30]} b4 {[%emt 0:00:30]} 23. Rc1 {[%emt 0:01:30]} Rac8 {[%emt 0:01:30]} 24. h3 {[%emt 0:00:30]} Qf4 {[%emt 0:01:30]} 25. Qd2 {[%emt 0:05:30]} a5 {[%emt 0:01:30]} 26. Re2 {[%emt 0:02:30]} Qxd2 {[%emt 0:00:30]} 27. Rxd2 {[%emt 0:00:00]} Rc4 {[%emt 0:00:30]} 28. Rd4 {[%emt 0:00:00]} Rfc8 {[%emt 0:00:00]} 29. Rxc4 {[%emt 0:01:30]} Rxc4 {[%emt 0:00:00]} 30. Kf1 {[%emt 0:02:30]} bxc3 {[%emt 0:00:30]} 31. Rxc3 {[%emt 0:01:30]} Rxa4 {[%emt 0:00:00]} 32. Rc6 {[%emt 0:00:00]} Kf7 {[%emt 0:00:00]} 33. Rc7+ {[%emt 0:01:00]} Kf6 {[%emt 0:00:00]} 34. g4 {[%emt 0:00:30]} h6 {[%emt 0:01:00]} 35. Rb7 {[%emt 0:00:30]} Rb4 {[%emt 0:00:00]} 36. Rxb4 {[%emt 0:00:30]} axb4 {[%emt 0:00:00]} 37. Ke2 {[%emt 0:00:30]} Ke5 {[%emt 0:00:30]} 38. Kd2 {[%emt 0:00:30]} Kf4 {[%emt 0:00:30]} 39. Ke2 {[%emt 0:01:30]} d4 {[%emt 0:00:00]} 40. Kd2 {[%emt 0:00:30]} Kf3 {[%emt 0:00:00]} 41. Ke1 {[%emt 0:00:30]} b3 {[%emt 0:00:30]} 0-1

[Event "29th CRO-chT Junior 2020"]
[Site "Cakovec"]
[Date "2020.07.15"]
[Round "3.16"]
[White "Kristofic, Dino"]
[Black "Novosel, Lovro"]
[Result "0-1"]
[ECO "B07"]
[WhiteElo "1290"]
[BlackElo "1719"]
[Annotator "NA RC"]
[PlyCount "42"]
[EventDate "2020.07.14"]
[EventType "team-tourn"]
[EventCountry "CRO"]
[SourceTitle "playchess.com"]
[Source "ChessBase"]
[SourceQuality "1"]
[TimeControl "5400+30"]

1. e4 {[%emt 0:00:30]} g6 {[%emt 0:00:30]} 2. Bc4 {[%emt 0:00:30]} Bg7 {[%emt 0:00:30]} 3. Nc3 {[%emt 0:00:30]} d6 {[%emt 0:01:30]} 4. Nf3 {[%emt 0:03:30]} Nf6 {[%emt 0:01:30]} 5. d3 {[%emt 0:02:30]} O-O {[%emt 0:01:30]} 6. O-O {[%emt 0:00:30]} c5 {[%emt 0:01:30]} 7. Be3 {[%emt 0:02:30]} a6 {[%emt 0:01:30]} 8. a4 {[%emt 0:01:30]} Nc6 {[%emt 0:03:30]} 9. Nd5 {[%emt 0:07:30]} Bg4 {[%emt 0:03:30]} 10. h3 {[%emt 0:01:30]} Bxf3 {[%emt 0:00:30]} 11. Qxf3 {[%emt 0:01:30]} Ne5 {[%emt 0:00:30]} 12. Qe2 {[%emt 0:03:30]} Nxc4 {[%emt 0:00:30]} 13. dxc4 {[%emt 0:00:30]} Nxe4 {[%emt 0:00:30]} 14. f3 {[%emt 0:03:30]} Ng3 {[%emt 0:00:30]} 15. Qd2 {[%emt 0:03:30]} Nxf1 {[%emt 0:00:00]} 16. Rxf1 {[%emt 0:00:00]} e6 {[%emt 0:02:00]} 17. Nc3 {[%emt 0:01:00]} Qb6 {[%emt 0:00:30]} 18. b3 {[%emt 0:00:30]} Qb4 {[%emt 0:00:30]} 19. Ne4 {[%emt 0:01:30]} Qxd2 {[%emt 0:00:30]} 20. Bxd2 {[%emt 0:00:00]} d5 {[%emt 0:00:00]} 21. Nxc5 {[%emt 0:00:00]} Bd4+ {[%emt 0:00:00]} 0-1

[Event "29th CRO-chT Junior 2020"]
[Site "Cakovec"]
[Date "2020.07.15"]
[Round "3.19"]
[White "Mijic, Karlo"]
[Black "Troselj, Ivan"]
[Result "0-1"]
[ECO "B12"]
[WhiteElo "1729"]
[BlackElo "1857"]
[Annotator "NA RC"]
[PlyCount "78"]
[EventDate "2020.07.14"]
[EventType "team-tourn"]
[EventCountry "CRO"]
[SourceTitle "playchess.com"]
[Source "ChessBase"]
[SourceQuality "1"]
[TimeControl "5400+30"]

{[%evp 12,77,69,43,56,17,35,62,50,74,47,29,40,28,38,30,39,0,99,91,120,122,197,98,101,100,83,47,64,21,61,54,58,37,38,42,34,0,14,7,7,-39,-16,-5,0,0,0,-53,21,-13,0,-25,-47,-31,-65,-77,-57,-463,-525,-495,-500,-722,-746,-29995,-29996,-29996,-29995,-29995]} 1. e4 {[%emt 0:00:30]} c6 {[%emt 0:00:30]} 2. d4 {[%emt 0:00:00]} d5 {[%emt 0:00:00]} 3. e5 {[%emt 0:00:00]} c5 {[%emt 0:00:00]} 4. dxc5 {[%emt 0:00:30]} e6 {[%emt 0:00:00]} 5. Be3 {[%emt 0:00:00]} Nc6 {[%emt 0:02:00]} 6. Nf3 {[%emt 0:00:00] B12: Caro-Kann: Advance Variation.} Qc7 {[%emt 0:08:30]} 7. Bb5 {[%emt 0:05:30]} Bd7 {[%emt 0:01:30]} 8. Bxc6 {[%emt 0:00:30]} Bxc6 {[%emt 0:00:30]} 9. b4 {[%emt 0:01:30]} a5 {[%emt 0:00:30]} 10. c3 {[%emt 0:01:30]} Ne7 {[%emt 0:01:30]} 11. Qd2 {[%emt 0:03:30]} Ng6 {[%emt 0:01:30]} 12. Bd4 {[%emt 0:00:30]} Be7 {[%emt 0:03:30]} 13. O-O {[%emt 0:00:30]} O-O {[%emt 0:00:30] [#]} 14. Qe3 $146 {[%emt 0:01:30]} ({Predecessor:} 14. Re1 Qd7 15. Qb2 Rfb8 16. Nbd2 a4 17. a3 Bb5 18. Qc2 Rc8 19. g3 Qc6 20. Rac1 Bf8 21. Re3 Be7 22. h4 h6 {½-½ (22) Martos Martin,J (1877)-Tarrago Domingo,M (1977) Barcelona 2016}) 14... axb4 {[%emt 0:01:30]} (14... Ra6 $11) 15. cxb4 {[%emt 0:00:30]} Ra4 {[%emt 0:00:30]} 16. a3 {[%emt 0:00:30]} Rfa8 {[%emt 0:00:00] [#]} (16... Raa8 $16 {was necessary.} 17. Nc3 Bd8) 17. Bb2 {[%emt 0:00:30]} (17. Nc3 $1 $18 {and the rest is easy.}) 17... Be8 {[%emt 0:07:00]} 18. Nc3 {[%emt 0:01:30]} R4a6 {[%emt 0:00:30]} 19. Rae1 {[%emt 0:01:30]} b6 {[%emt 0:04:30]} 20. cxb6 {[%emt 0:01:30]} Rxb6 {[%emt 0:01:30]} 21. Rc1 {[%emt 0:05:30]} Rc6 {[%emt 0:00:30]} 22. Nd4 {[%emt 0:05:30]} Rc4 {[%emt 0:01:30]} 23. f4 {[%emt 0:00:30]} Qa7 {[%emt 0:01:30]} 24. Rfd1 {[%emt 0:07:30]} Bd8 {[%emt 0:01:30]} 25. Nce2 {[%emt 0:03:30]} Bb6 {[%emt 0:00:30]} 26. Kf1 {[%emt 0:00:30]} Bb5 {[%emt 0:07:30]} 27. Rxc4 {[%emt 0:07:30]} Bxc4 {[%emt 0:00:30]} 28. g3 {[%emt 0:00:30]} Ne7 {[%emt 0:01:30]} 29. Qd2 {[%emt 0:02:30]} Qa6 {[%emt 0:12:30]} 30. Kg2 {[%emt 0:02:30]} h6 {[%emt 0:15:30]} 31. Nc1 {[%emt 0:04:30]} Rc8 {[%emt 0:02:30]} 32. Ncb3 {[%emt 0:01:30]} Bxb3 {[%emt 0:01:30]} 33. Nxb3 {[%emt 0:00:30]} Nf5 {[%emt 0:00:30]} 34. Re1 $2 {[%emt 0:01:30] [#]} (34. Kh3 $17 {is a better chance.}) 34... Ne3+ $1 {[%emt 0:01:30]} 35. Rxe3 {[%emt 0:01:30]} Bxe3 {[%emt 0:00:00]} 36. Qxe3 {[%emt 0:00:30]} (36. Qd1 $142 Qc4 37. Nd4) 36... Rc2+ {[%emt 0:00:00] Double Attack} 37. Kh3 {[%emt 0:00:30]} Qf1+ {[%emt 0:00:30]} 38. Kg4 {[%emt 0:00:30]} Qd1+ {[%emt 0:00:30] Decoy} 39. Qf3 {[%emt 0:00:30]} h5+ {[%emt 0:00:00]} 0-1